[Event "44th Chess Olympiad Open 2022"]
[Site "Chennai"]
[Date "2022.08.01"]
[Round "4.55"]
[White "Kaloust, Giorgio"]
[Black "Yahi, Mohamed Salem"]
[Result "1-0"]
[WhiteElo "1942"]
[BlackElo "1862"]
[Annotator "NA RC"]
[PlyCount "121"]
[EventDate "2022.??.??"]
[TimeControl "60"]

1. d4 {[%emt 0:00:02]} d5 {[%emt 0:00:10]} 2. c4 {[%emt 0:00:08]} c6 {[%emt 0:
00:00]} 3. Nf3 {[%emt 0:00:09]} e6 {[%emt 0:00:43]} 4. Nc3 {[%emt 0:01:04]} Nf6
{[%emt 0:00:24]} 5. e3 {[%emt 0:02:34]} Be7 {[%emt 0:01:43]} 6. Bd3 {[%emt 0:
00:00]} dxc4 {[%emt 0:00:25]} 7. Bxc4 {[%emt 0:00:08]} b5 {[%emt 0:00:18]} 8.
Bd3 {[%emt 0:00:59]} a6 {[%emt 0:00:11]} 9. O-O {[%emt 0:00:14]} h6 {[%emt 0:
00:00]} 10. b3 {[%emt 0:02:21]} Bb7 {[%emt 0:00:30]} 11. Bb2 {[%emt 0:00:27]}
Nbd7 {[%emt 0:00:40]} 12. Qe2 {[%emt 0:03:03]} O-O {[%emt 0:00:39]} 13. Rfd1 {
[%emt 0:00:23]} Qc7 {[%emt 0:00:30]} 14. Rac1 {[%emt 0:00:17]} Rfe8 {[%emt 0:
00:00]} 15. e4 {[%emt 0:06:37]} Qf4 {[%emt 0:02:46]} 16. e5 {[%emt 0:02:06]}
Nh7 {[%emt 0:02:43]} 17. Ne1 {[%emt 0:08:23]} Qh4 {[%emt 0:09:26]} 18. Nf3 {
[%emt 0:25:56]} Qf4 {[%emt 0:05:32]} 19. Ne4 {[%emt 0:11:19]} f5 {[%emt 0:00:
00]} 20. exf6 {[%emt 0:05:28]} Bxf6 {[%emt 0:01:56]} 21. Nc5 {[%emt 0:02:21]}
Nxc5 {[%emt 0:01:29]} 22. Rxc5 {[%emt 0:00:04]} Ng5 {[%emt 0:01:54]} 23. Ne5 {
[%emt 0:01:14]} Bxe5 {[%emt 0:02:11]} 24. Rxe5 {[%emt 0:01:18]} c5 {[%emt 0:00:
00]} 25. Bc1 {[%emt 0:02:10]} Qf6 {[%emt 0:10:30]} 26. Bxg5 {[%emt 0:01:40]}
hxg5 {[%emt 0:00:09]} 27. dxc5 {[%emt 0:00:59]} Rad8 {[%emt 0:01:49]} 28. Re1 {
[%emt 0:01:07]} Rd4 {[%emt 0:06:53]} 29. Bc2 {[%emt 0:03:46]} Bd5 {[%emt 0:00:
00]} 30. Qh5 {[%emt 0:02:43]} Rd8 {[%emt 0:03:56]} 31. Qxg5 {[%emt 0:07:14]}
Qxg5 {[%emt 0:01:11]} 32. Rxg5 {[%emt 0:00:02]} Rc8 {[%emt 0:02:14]} 33. f3 {
[%emt 0:04:10]} Rxc5 {[%emt 0:00:51]} 34. Bb1 {[%emt 0:02:24]} Rd2 {[%emt 0:00:
00]} 35. Rge5 {[%emt 0:01:08]} Kf7 {[%emt 0:00:51]} 36. h4 {[%emt 0:01:10]} Rd4
{[%emt 0:01:50]} 37. h5 {[%emt 0:01:04]} Kf6 {[%emt 0:00:25]} 38. Bg6 {[%emt 0:
00:00]} Rc3 {[%emt 0:01:04]} 39. R5e2 {[%emt 0:00:00]} Rc5 {[%emt 0:02:34]} 40.
Kf2 {[%emt 0:00:43]} Rc3 {[%emt 0:00:16]} 41. Re3 {[%emt 0:30:54]} Rd2+ {
[%emt 0:32:46]} 42. R1e2 {[%emt 0:00:00]} Rxe2+ {[%emt 0:00:00]} 43. Kxe2 {
[%emt 0:00:00]} Rc1 {[%emt 0:00:00]} 44. Kd3 {[%emt 0:00:00]} a5 {[%emt 0:00:
00]} 45. Be4 {[%emt 0:00:00]} Ke5 {[%emt 0:00:00]} 46. Bxd5+ {[%emt 0:00:00]}
Kxd5 {[%emt 0:00:00]} 47. f4 {[%emt 0:00:00]} Rd1+ {[%emt 0:00:00]} 48. Kc2 {
[%emt 0:00:00]} Rf1 {[%emt 0:00:00]} 49. Re5+ {[%emt 0:00:00]} Kd4 {[%emt 0:00:
00]} 50. Rxb5 {[%emt 0:00:00]} Rf2+ {[%emt 0:00:00]} 51. Kb1 {[%emt 0:00:00]}
Rxf4 {[%emt 0:00:00]} 52. Rg5 {[%emt 0:00:00]} Rf2 {[%emt 0:00:00]} 53. Rxg7 {
[%emt 0:00:00]} e5 {[%emt 0:00:00]} 54. h6 {[%emt 0:00:00]} e4 {[%emt 0:00:00]}
55. h7 {[%emt 0:00:00]} Rf1+ {[%emt 0:00:00]} 56. Kc2 {[%emt 0:00:00]} Rh1 {
[%emt 0:00:00]} 57. Kd2 {[%emt 0:00:00]} Rh2 {[%emt 0:00:00]} 58. a3 {[%emt 0:
00:00]} Rh4 {[%emt 0:00:00]} 59. b4 {[%emt 0:00:00]} axb4 {[%emt 0:00:00]} 60.
axb4 {[%emt 0:00:00]} Kc4 {[%emt 0:00:00]} 61. Ke3 {[%emt 0:00:00]} 1-0

[Event "44th Chess Olympiad Open 2022"]
[Site "Chennai"]
[Date "2022.08.01"]
[Round "4.55"]
[White "Hassan Sidi Mohamed Cheikh"]
[Black "El Jawich, Amro"]
[Result "0-1"]
[WhiteElo "1825"]
[BlackElo "2314"]
[Annotator "TA"]
[PlyCount "96"]
[EventDate "2022.??.??"]
[TimeControl "60"]

{[%evp 10,96,27,38,27,15,17,22,17,10,21,0,39,-33,-27,-336,-335,-327,-47,-40,21,
16,25,-8,-17,-139,-120,-154,-66,-270,-118,-684,-441,-419,-423,-456,-423,-441,
-423,-421,-418,-462,-458,-485,-475,-473,-468,-466,-475,-471,-476,-484,-462,
-549,-549,-590,-589,-733,-725,-733,-719,-702,-661,-767,-764,-1958,-1314,-12839,
-12839,-12843,-12844,-29975,-29976,-29975,-12846,-12847,-12847,-12847,-12848,
-12848,-12847,-12848,-12849,-12849,-12850,-12850,-12850,-27999,-27999]} 1. e4 {
[%emt 0:00:04]} c5 {[%emt 0:00:04]} 2. c3 {[%emt 0:01:04]} d5 {[%emt 0:03:38]}
3. exd5 {[%emt 0:00:06]} Qxd5 {[%emt 0:00:03]} 4. d4 {[%emt 0:00:16]} Nc6 {
[%emt 0:00:13]} 5. Nf3 {[%emt 0:00:10]} Bf5 {[%emt 0:00:24]} 6. Be3 {[%emt 0:
00:00]} e6 {[%emt 0:11:32] B22: Sicilian: 2 c3.} 7. Na3 {[%emt 0:00:17]} cxd4 {
[%emt 0:07:28] [#]} 8. Nb5 {[%emt 0:00:31]} O-O-O {[%emt 0:11:40] Against Nc7.
The position is equal.} 9. Nfxd4 {[%emt 0:01:11]} Bc5 {[%emt 0:06:36] [#]} 10.
Qa4 $146 {[%emt 0:05:40] aiming for Nxc6.} (10. Nxf5 Qxf5 11. Qf3 Bxe3 12. fxe3
Nf6 $11) ({Predecessor:} 10. Nxc6 Qxc6 11. Qa4 a6 12. Na7+ Bxa7 13. Qxc6+ bxc6
14. Bxa7 Kb7 15. Be3 Nf6 16. f3 {0-1 (44) Bakiev,D (2236)-Lerchl,C (1843)
Willingen 2022}) 10... a6 {[%emt 0:09:10][%cal Ya7a6,Ya6b5,Yb5b4]} (10... Nge7
$5 {[%cal Ra7a6]}) 11. c4 {[%emt 0:20:15]} ({White should play} 11. Nxc6 $14
Qxc6 12. Na7+ Bxa7 13. Qxc6+ bxc6 14. Bxa7) 11... Qd7 {[%emt 0:27:05][%cal
Rc6d4]} 12. Nxf5 {[%emt 0:05:44]} (12. Rd1 $1 $11 {and White has nothing to
worry.}) 12... axb5 $19 {[%emt 0:09:56]} (12... exf5 $2 13. Rd1 Qe6 14. Be2 (
14. Rxd8+ $2 Nxd8 15. Kd2 Bxe3+ 16. fxe3 axb5 $19) 14... Bxe3 15. fxe3 $19) 13.
Qc2 {[%emt 0:03:53]} ({Much worse is} 13. Qa8+ Kc7 14. Qxd8+ Nxd8 $19) 13...
Bxe3 {[%emt 0:04:57]} (13... exf5 14. Bxc5 Nd4 15. Bxd4 Qxd4 16. Be2 $16) (
13... Bb4+ $19 14. Ke2 exf5 15. cxb5 f4 16. bxc6 Qg4+ 17. f3 Qe6) 14. Nxe3 $15
{[%emt 0:01:33]} Nd4 {[%emt 0:00:57]} (14... b4 $1 $15) 15. Qc3 $11 {[%emt 0:
01:04]} Nf6 {[%emt 0:01:51][%cal Yb5b4] Strongly threatening ...b4!} 16. f3 {
[%emt 0:12:14]} Kb8 $36 {[%emt 0:01:30] Black is pushing.} 17. Rd1 {[%emt 0:07:
35] [#]} (17. cxb5 $11 Nxb5 18. Bxb5 Qxb5 19. a4 (19. Rc1 Rc8 $17)) 17... b4 $1
$17 {[%emt 0:00:02]} 18. Qd2 {[%emt 0:00:16]} Qc7 {[%emt 0:00:56] 0x0.
00208f16c91cdp-1022s more active pieces.} (18... Qd6 $17 {...Nh5 is the strong
threat.} 19. Bd3 Nh5) 19. Qxb4 $2 {[%emt 0:00:53] [#]} ({White must play} 19.
Bd3 $1 $15) 19... Qe5 {[%emt 0:00:52]} (19... Qf4 $1 $19 {[%cal Rf4e3] and
Black stays clearly on top.} 20. Qc3 Qh4+ 21. g3 Nxf3+ 22. Kf2 Ne4+ 23. Kxf3
Nxc3 24. gxh4 Nxd1) 20. Kf2 {[%emt 0:06:17] [#]} (20. Qc3 $17) 20... Qxe3+ $3 {
[%emt 0:00:21] Remove Defender, Decoy} 21. Kxe3 {[%emt 0:00:17]} Nc2+ {[%emt 0:
00:05] Discovered Attack, Double Attack. Pair of Knights!} 22. Kf2 {[%emt 0:00:
21]} Nxb4 {[%emt 0:00:08]} 23. Be2 {[%emt 0:05:23]} Rxd1 {[%emt 0:01:01]} 24.
Rxd1 {[%emt 0:00:03]} Nxa2 {[%emt 0:00:20]} 25. g4 {[%emt 0:00:32]} h6 {
[%emt 0:00:02]} 26. h4 {[%emt 0:00:00]} Kc7 {[%emt 0:00:21]} 27. f4 {[%emt 0:
00:16]} Nb4 {[%emt 0:00:58]} 28. Bf3 {[%emt 0:00:30]} Rd8 {[%emt 0:01:14]} 29.
Rxd8 {[%emt 0:00:14]} Kxd8 {[%emt 0:00:00]} 30. g5 {[%emt 0:00:05]} Nd7 {
[%emt 0:00:28]} 31. gxh6 {[%emt 0:00:08]} gxh6 {[%emt 0:00:01]} 32. Ke3 {
[%emt 0:00:24]} b6 {[%emt 0:00:51]} 33. b3 {[%emt 0:01:18]} Nc5 {[%emt 0:00:33]
} 34. Bd1 {[%emt 0:00:22]} Ke7 {[%emt 0:00:00]} 35. Kd4 {[%emt 0:00:20]} Nbd3 {
[%emt 0:00:37]} 36. f5 {[%emt 0:00:35]} e5+ {[%emt 0:00:44][%cal Ye6e5,Ye5e4,
Ye4e3]} 37. Kd5 {[%emt 0:00:30]} e4 {[%emt 0:00:35] Hoping for ...Kf6.} 38. Kc6
{[%emt 0:00:54]} e3 {[%emt 0:00:36]} 39. Kxb6 {[%emt 0:00:13] [#]} Nxb3 $1 {
[%emt 0:00:15]} 40. c5 {[%emt 0:02:44]} (40. f6+ Kxf6) 40... Nbxc5 {[%emt 0:00:
30]} 41. Kb5 {[%emt 0:00:00]} Nf2 {[%emt 0:30:46]} (41... Ne4 $142 42. Be2 Ne5
43. Kb4 Ng3 44. Bd1 e2 45. Bxe2 Nxe2 46. Kb3 Nd4+ 47. Kb2 Nxf5 48. Kc3 Nxh4 49.
Kd2 Ng4 50. Ke2 f5 51. Kd2 f4 52. Ke1 f3 53. Kd1 Nf5 54. Ke1 f2+ 55. Kd1 f1=Q+
56. Kc2 Nge3+ 57. Kc3 Qc4+ 58. Kb2 Nd1+ 59. Kb1 Qc3 60. Ka2 Qb2#) 42. Be2 {
[%emt 0:00:25]} Nce4 {[%emt 0:00:37] ( -> ...Nc3+)} 43. Kc4 {[%emt 0:00:19]
Inhibits Nc3.} Ng3 {[%emt 0:00:10][%csl Ye2,Yf5]} 44. Kd4 {[%emt 0:00:16]}
Nxf5+ {[%emt 0:00:15]} 45. Ke5 {[%emt 0:00:14]} Ng3 {[%emt 0:00:08]} 46. Kf4 {
[%emt 0:00:17]} Nxe2+ {[%emt 0:00:06]} 47. Kxe3 {[%emt 0:00:07]} Kf6 {[%emt 0:
00:47]} 48. Kxf2 {[%emt 0:00:07]} Nf4 {[%emt 0:00:39] Weighted Error Value:
White=0.81/Black=0.33} 0-1

[Event "44th Chess Olympiad Open 2022"]
[Site "Chennai"]
[Date "2022.08.01"]
[Round "4.56"]
[White "Ayyad, Husain"]
[Black "Toczek, Grzegorz"]
[Result "1-0"]
[WhiteElo "2209"]
[BlackElo "2287"]
[Annotator "NA RC"]
[PlyCount "67"]
[EventDate "2022.??.??"]
[TimeControl "60"]

1. e4 {[%emt 0:00:03]} e5 {[%emt 0:00:27]} 2. Nf3 {[%emt 0:00:01]} Nc6 {
[%emt 0:00:11]} 3. d4 {[%emt 0:00:04]} exd4 {[%emt 0:00:10]} 4. Bc4 {[%emt 0:
00:00]} Bc5 {[%emt 0:01:13]} 5. O-O {[%emt 0:00:49]} d6 {[%emt 0:00:51]} 6. c3
{[%emt 0:01:34]} Bg4 {[%emt 0:04:47]} 7. Qb3 {[%emt 0:00:07]} Bxf3 {[%emt 0:00:
00]} 8. Bxf7+ {[%emt 0:00:05]} Kf8 {[%emt 0:00:05]} 9. gxf3 {[%emt 0:00:05]}
Nf6 {[%emt 0:03:10]} 10. Be6 {[%emt 0:14:34]} Bb6 {[%emt 0:12:39]} 11. Bh3 {
[%emt 0:31:56]} Qe8 {[%emt 0:00:53]} 12. Bf4 {[%emt 0:06:31]} g5 {[%emt 0:00:
00]} 13. Bc1 {[%emt 0:02:04]} Rg8 {[%emt 0:08:00]} 14. Bf5 {[%emt 0:03:17]} Qh5
{[%emt 0:06:46]} 15. Nd2 {[%emt 0:13:31]} Re8 {[%emt 0:01:02]} 16. Qd1 {
[%emt 0:16:59]} Ne5 {[%emt 0:01:52]} 17. cxd4 {[%emt 0:04:25]} Bxd4 {[%emt 0:
00:00]} 18. Kh1 {[%emt 0:00:38]} g4 {[%emt 0:01:16]} 19. f4 {[%emt 0:00:45]}
Nf3 {[%emt 0:00:30]} 20. Nxf3 {[%emt 0:00:01]} gxf3 {[%emt 0:00:47]} 21. Qxd4 {
[%emt 0:00:01]} Ng4 {[%emt 0:00:38]} 22. Bxg4 {[%emt 0:00:11]} Rxg4 {[%emt 0:
00:00]} 23. Qf6+ {[%emt 0:00:31]} Kg8 {[%emt 0:00:06]} 24. Qf5 {[%emt 0:02:00]}
Qxf5 {[%emt 0:02:50]} 25. exf5 {[%emt 0:00:02]} Re2 {[%emt 0:00:08]} 26. Be3 {
[%emt 0:00:07]} Rxb2 {[%emt 0:00:11]} 27. Rfb1 {[%emt 0:00:54]} Rxb1+ {[%emt 0:
00:00]} 28. Rxb1 {[%emt 0:00:01]} b6 {[%emt 0:00:16]} 29. h3 {[%emt 0:01:42]}
Rh4 {[%emt 0:01:11]} 30. Kh2 {[%emt 0:00:05]} Rh5 {[%emt 0:00:10]} 31. Rg1+ {
[%emt 0:00:10]} Kf7 {[%emt 0:00:15]} 32. Rg5 {[%emt 0:00:06]} Rh6 {[%emt 0:00:
00]} 33. Bd4 {[%emt 0:00:05]} c5 {[%emt 0:00:37]} 34. Bg7 {[%emt 0:00:06]} 1-0

[Event "44th Chess Olympiad Open 2022"]
[Site "Chennai"]
[Date "2022.08.01"]
[Round "4.56"]
[White "Kett, Tim"]
[Black "Al-Burshaid, Ebrahim"]
[Result "1-0"]
[WhiteElo "2197"]
[BlackElo "1702"]
[Annotator "NA RC"]
[PlyCount "71"]
[EventDate "2022.??.??"]
[TimeControl "60"]

1. e4 {[%emt 0:00:04]} e5 {[%emt 0:00:02]} 2. f4 {[%emt 0:00:07]} d5 {[%emt 0:
00:00]} 3. exd5 {[%emt 0:00:08]} exf4 {[%emt 0:00:08]} 4. Nf3 {[%emt 0:00:12]}
Nf6 {[%emt 0:00:17]} 5. Bc4 {[%emt 0:00:35]} Bd6 {[%emt 0:01:06]} 6. Qe2+ {
[%emt 0:02:24]} Qe7 {[%emt 0:01:00]} 7. Qxe7+ {[%emt 0:00:58]} Kxe7 {[%emt 0:
00:00]} 8. Nc3 {[%emt 0:04:23]} a6 {[%emt 0:01:49]} 9. O-O {[%emt 0:06:30]} Re8
{[%emt 0:03:41]} 10. d4 {[%emt 0:00:00]} Nbd7 {[%emt 0:11:10]} 11. Bd2 {
[%emt 0:16:36]} b5 {[%emt 0:03:35]} 12. Rae1+ {[%emt 0:02:12]} Kf8 {[%emt 0:00:
00]} 13. Rxe8+ {[%emt 0:00:19]} Kxe8 {[%emt 0:00:59]} 14. Bb3 {[%emt 0:03:37]}
Bb7 {[%emt 0:15:05]} 15. Ne5 {[%emt 0:07:56]} Nxe5 {[%emt 0:11:09]} 16. dxe5 {
[%emt 0:02:05]} Bc5+ {[%emt 0:00:41]} 17. Kh1 {[%emt 0:00:07]} Ng4 {[%emt 0:00:
00]} 18. Ne4 {[%emt 0:09:23]} Be3 {[%emt 0:00:36]} 19. Bxe3 {[%emt 0:00:57]}
fxe3 {[%emt 0:00:23]} 20. Nc5 {[%emt 0:00:32]} Nf2+ {[%emt 0:04:53]} 21. Kg1 {
[%emt 0:00:09]} Bc8 {[%emt 0:00:58]} 22. Re1 {[%emt 0:02:25]} Bf5 {[%emt 0:00:
00]} 23. Rxe3 {[%emt 0:04:37]} Nd1 {[%emt 0:06:15]} 24. Re1 {[%emt 0:06:07]}
Nxb2 {[%emt 0:00:46]} 25. d6 {[%emt 0:01:13]} Nc4 {[%emt 0:00:50]} 26. dxc7 {
[%emt 0:00:47]} a5 {[%emt 0:01:11]} 27. a4 {[%emt 0:06:50]} Nb6 {[%emt 0:03:33]
} 28. axb5 {[%emt 0:04:44]} a4 {[%emt 0:01:02]} 29. Ba2 {[%emt 0:01:07]} Bxc2 {
[%emt 0:02:09]} 30. Rc1 {[%emt 0:00:54]} Bf5 {[%emt 0:02:13]} 31. Rd1 {[%emt 0:
00:00]} a3 {[%emt 0:06:18]} 32. Rd6 {[%emt 0:04:32]} Nc8 {[%emt 0:00:37]} 33.
b6 {[%emt 0:00:55]} Nxd6 {[%emt 0:00:30]} 34. exd6 {[%emt 0:00:06]} Bc8 {
[%emt 0:00:22]} 35. d7+ {[%emt 0:00:12]} Bxd7 {[%emt 0:00:33]} 36. b7 {[%emt 0:
00:00]} 1-0

[Event "44th Chess Olympiad Open 2022"]
[Site "Chennai"]
[Date "2022.08.01"]
[Round "4.56"]
[White "Pleasants, Allan J"]
[Black "BuKhalaf, Hussain"]
[Result "1-0"]
[WhiteElo "2024"]
[BlackElo "1813"]
[Annotator "NA RC"]
[PlyCount "61"]
[EventDate "2022.??.??"]
[TimeControl "60"]

1. Nf3 {[%emt 0:00:03]} Nf6 {[%emt 0:00:08]} 2. g3 {[%emt 0:00:07]} g6 {
[%emt 0:00:07]} 3. Bg2 {[%emt 0:00:04]} Bg7 {[%emt 0:00:06]} 4. O-O {[%emt 0:
00:00]} O-O {[%emt 0:00:08]} 5. d4 {[%emt 0:00:16]} c6 {[%emt 0:00:14]} 6. c4 {
[%emt 0:04:30]} d5 {[%emt 0:00:52]} 7. b3 {[%emt 0:02:34]} Ne4 {[%emt 0:12:42]}
8. Bb2 {[%emt 0:04:00]} Bf5 {[%emt 0:08:57]} 9. Nbd2 {[%emt 0:25:42]} Nd7 {
[%emt 0:12:03]} 10. Nh4 {[%emt 0:06:31]} Bh6 {[%emt 0:09:54]} 11. Nxe4 {
[%emt 0:07:49]} dxe4 {[%emt 0:06:23]} 12. Nxf5 {[%emt 0:02:09]} gxf5 {[%emt 0:
00:00]} 13. Qc2 {[%emt 0:03:26]} e6 {[%emt 0:02:29]} 14. Rad1 {[%emt 0:01:29]}
Nb6 {[%emt 0:03:46]} 15. f3 {[%emt 0:04:55]} e3 {[%emt 0:07:58]} 16. f4 {
[%emt 0:01:24]} Bg7 {[%emt 0:00:31]} 17. Rf3 {[%emt 0:05:30]} Qf6 {[%emt 0:00:
00]} 18. Rxe3 {[%emt 0:01:20]} Rfd8 {[%emt 0:03:22]} 19. Red3 {[%emt 0:01:22]}
Rac8 {[%emt 0:00:30]} 20. Bc3 {[%emt 0:07:02]} Qe7 {[%emt 0:06:33]} 21. Be1 {
[%emt 0:03:21]} c5 {[%emt 0:06:47]} 22. dxc5 {[%emt 0:01:32]} Rxd3 {[%emt 0:00:
00]} 23. Qxd3 {[%emt 0:00:24]} Qxc5+ {[%emt 0:00:07]} 24. Bf2 {[%emt 0:00:10]}
Qc7 {[%emt 0:00:22]} 25. Qf3 {[%emt 0:05:32]} Qc6 {[%emt 0:01:43]} 26. a4 {
[%emt 0:02:01]} Bf6 {[%emt 0:05:22]} 27. a5 {[%emt 0:01:14]} Na8 {[%emt 0:00:
00]} 28. Qe3 {[%emt 0:01:14]} Qa6 {[%emt 0:03:00]} 29. Qxa7 {[%emt 0:01:11]}
Qxa7 {[%emt 0:00:09]} 30. Bxa7 {[%emt 0:00:07]} Rc7 {[%emt 0:00:45]} 31. Be3 {
[%emt 0:01:02]} 1-0

[Event "44th Chess Olympiad Open 2022"]
[Site "Chennai"]
[Date "2022.08.01"]
[Round "4.56"]
[White "Shaker, Musab"]
[Black "Bullen, Alex"]
[Result "0-1"]
[WhiteElo "1705"]
[BlackElo "2106"]
[Annotator "NA RC"]
[PlyCount "134"]
[EventDate "2022.??.??"]
[TimeControl "60"]

1. d4 {[%emt 0:00:03]} d5 {[%emt 0:00:05]} 2. Nf3 {[%emt 0:00:11]} Nf6 {
[%emt 0:00:06]} 3. Bf4 {[%emt 0:00:10]} c5 {[%emt 0:00:07]} 4. e3 {[%emt 0:00:
00]} Nc6 {[%emt 0:00:07]} 5. c3 {[%emt 0:00:16]} Qb6 {[%emt 0:00:07]} 6. Qb3 {
[%emt 0:00:53]} c4 {[%emt 0:00:10]} 7. Qc2 {[%emt 0:00:35]} Bf5 {[%emt 0:00:11]
} 8. Qc1 {[%emt 0:02:05]} Nh5 {[%emt 0:00:08]} 9. Nh4 {[%emt 0:03:30]} Bg6 {
[%emt 0:20:14]} 10. Be2 {[%emt 0:07:12]} Nxf4 {[%emt 0:01:03]} 11. exf4 {
[%emt 0:00:11]} e6 {[%emt 0:00:44]} 12. Nd2 {[%emt 0:07:40]} Qc7 {[%emt 0:00:
00]} 13. Ndf3 {[%emt 0:10:46]} Be7 {[%emt 0:08:25]} 14. O-O {[%emt 0:05:47]}
Be4 {[%emt 0:04:34]} 15. b3 {[%emt 0:05:46]} cxb3 {[%emt 0:02:22]} 16. axb3 {
[%emt 0:02:51]} h6 {[%emt 0:00:38]} 17. g3 {[%emt 0:03:58]} O-O {[%emt 0:02:51]
} 18. Qe3 {[%emt 0:06:20]} Rfc8 {[%emt 0:05:58]} 19. Rfc1 {[%emt 0:05:09]} Qb6
{[%emt 0:05:43]} 20. Bd3 {[%emt 0:14:57]} Bxd3 {[%emt 0:09:27]} 21. Qxd3 {
[%emt 0:00:11]} Bf6 {[%emt 0:00:41]} 22. Ng2 {[%emt 0:01:10]} Rc7 {[%emt 0:00:
00]} 23. f5 {[%emt 0:07:07]} exf5 {[%emt 0:04:08]} 24. Ne3 {[%emt 0:01:15]} Ne7
{[%emt 0:01:53]} 25. Nxf5 {[%emt 0:02:35]} Nxf5 {[%emt 0:01:19]} 26. Qxf5 {
[%emt 0:00:04]} Qxb3 {[%emt 0:00:56]} 27. Rab1 {[%emt 0:05:23]} Qc4 {[%emt 0:
00:00]} 28. Ne1 {[%emt 0:05:45]} Qc6 {[%emt 0:06:05]} 29. Ng2 {[%emt 0:01:54]}
Qd7 {[%emt 0:06:00]} 30. Qf3 {[%emt 0:00:28]} Rd8 {[%emt 0:02:40]} 31. Nf4 {
[%emt 0:00:20]} Bg5 {[%emt 0:00:37]} 32. h4 {[%emt 0:01:01]} Bxf4 {[%emt 0:00:
00]} 33. Qxf4 {[%emt 0:00:04]} Rdc8 {[%emt 0:00:29]} 34. Qf3 {[%emt 0:00:19]}
b5 {[%emt 0:00:53]} 35. Rb3 {[%emt 0:00:33]} Rc4 {[%emt 0:01:29]} 36. Rcb1 {
[%emt 0:00:51]} a6 {[%emt 0:00:39]} 37. Ra1 {[%emt 0:00:34]} Qc6 {[%emt 0:00:
00]} 38. Raa3 {[%emt 0:00:29]} Ra8 {[%emt 0:00:52]} 39. Rb4 {[%emt 0:00:29]} a5
{[%emt 0:01:06]} 40. Rxc4 {[%emt 0:00:13]} Qxc4 {[%emt 0:00:34]} 41. Kg2 {
[%emt 0:30:56]} a4 {[%emt 0:32:42]} 42. h5 {[%emt 0:00:00]} Re8 {[%emt 0:00:00]
} 43. Ra1 {[%emt 0:00:00]} Qb3 {[%emt 0:00:00]} 44. Qd3 {[%emt 0:00:00]} a3 {
[%emt 0:00:00]} 45. Rb1 {[%emt 0:00:00]} Qc4 {[%emt 0:00:00]} 46. Qxc4 {
[%emt 0:00:00]} bxc4 {[%emt 0:00:00]} 47. Ra1 {[%emt 0:00:00]} Ra8 {[%emt 0:00:
00]} 48. Kf3 {[%emt 0:00:00]} Kf8 {[%emt 0:00:00]} 49. Kf4 {[%emt 0:00:00]} Ke7
{[%emt 0:00:00]} 50. Ke5 {[%emt 0:00:00]} Ra5 {[%emt 0:00:00]} 51. Ra2 {
[%emt 0:00:00]} f6+ {[%emt 0:00:00]} 52. Kf5 {[%emt 0:03:48]} Kd6 {[%emt 0:00:
00]} 53. g4 {[%emt 0:01:27]} Ra6 {[%emt 0:00:00]} 54. f3 {[%emt 0:01:08]} Ra7 {
[%emt 0:00:00]} 55. f4 {[%emt 0:00:38]} Ke7 {[%emt 0:00:00]} 56. Re2+ {[%emt 0:
00:00]} Kf7 {[%emt 0:00:00]} 57. Ra2 {[%emt 0:00:11]} Ra6 {[%emt 0:00:00]} 58.
g5 {[%emt 0:00:43]} hxg5 {[%emt 0:00:00]} 59. fxg5 {[%emt 0:00:12]} fxg5 {
[%emt 0:00:00]} 60. Kxg5 {[%emt 0:00:15]} Ke6 {[%emt 0:00:00]} 61. Kg6 {
[%emt 0:01:08]} Ra7 {[%emt 0:00:00]} 62. Kg5 {[%emt 0:00:33]} Kd7 {[%emt 0:00:
00]} 63. Kf4 {[%emt 0:00:30]} Kc6 {[%emt 0:00:00]} 64. Kf5 {[%emt 0:00:29]} Kb5
{[%emt 0:00:00]} 65. Ke6 {[%emt 0:00:18]} Ka4 {[%emt 0:00:04]} 66. Kxd5 {
[%emt 0:00:36]} Kb3 {[%emt 0:00:09]} 67. Ra1 {[%emt 0:00:32]} a2 {[%emt 0:00:
00]} 0-1